[Event "Summer Prague Open-A 2022"]
[Site "Prague"]
[Date "2022.08.06"]
[Round "2.20"]
[White "Toure, Ananth"]
[Black "Brejnik, Gustav"]
[Result "1/2-1/2"]
[ECO "B13"]
[WhiteElo "2055"]
[BlackElo "2292"]
[Annotator "RC"]
[PlyCount "101"]
[EventDate "2022.08.05"]
[EventType "swiss"]
[EventCountry "CZE"]
[SourceTitle "playchess.com"]
[Source "ChessBase"]
[SourceQuality "1"]
[TimeControl "40/5400+30:1800+30"]

1. e4 {[%emt 0:01:33]} c6 {[%emt 0:00:06]} 2. d4 {[%emt 0:00:06]} d5 {[%emt 0:00:05]} 3. exd5 {[%emt 0:00:33]} cxd5 {[%emt 0:00:06]} 4. Bd3 {[%emt 0:00:07]} Nc6 {[%emt 0:00:09]} 5. c3 {[%emt 0:00:04]} Qc7 {[%emt 0:00:22]} 6. h3 {[%emt 0:00:52]} g6 {[%emt 0:00:21]} 7. Qc2 {[%emt 0:00:08]} f6 {[%emt 0:00:18]} 8. Nf3 {[%emt 0:10:07]} e5 {[%emt 0:05:48]} 9. dxe5 {[%emt 0:04:10]} fxe5 {[%emt 0:02:43]} 10. Bb5 {[%emt 0:01:06]} Bd6 {[%emt 0:08:51]} 11. O-O {[%emt 0:06:03]} Bf5 {[%emt 0:04:32]} 12. Qa4 {[%emt 0:11:11]} Nge7 {[%emt 0:26:22]} 13. Re1 {[%emt 0:07:49]} O-O {[%emt 0:01:18]} 14. Bh6 {[%emt 0:02:55]} Rfe8 {[%emt 0:00:41]} 15. Nbd2 {[%emt 0:02:34]} a6 {[%emt 0:01:11]} 16. Bxc6 {[%emt 0:14:48]} bxc6 {[%emt 0:00:04]} 17. Qh4 {[%emt 0:00:59]} Bd3 {[%emt 0:06:34]} 18. g4 {[%emt 0:02:39]} Nc8 {[%emt 0:09:11]} 19. Re3 {[%emt 0:02:07]} e4 {[%emt 0:00:48]} 20. Ne1 {[%emt 0:08:57]} Bc5 {[%emt 0:02:59]} 21. Rg3 {[%emt 0:00:54]} Bd6 {[%emt 0:10:12]} 22. Re3 {[%emt 0:00:06]} Bc5 {[%emt 0:00:03]} 23. Rg3 {[%emt 0:00:05]} Be2 {[%emt 0:03:21]} 24. Nb3 {[%emt 0:00:46]} Bb6 {[%emt 0:01:09]} 25. Nd4 {[%emt 0:00:34]} Bxd4 {[%emt 0:00:19]} 26. cxd4 {[%emt 0:00:05]} Nb6 {[%emt 0:02:22]} 27. Re3 {[%emt 0:02:42]} Bb5 {[%emt 0:00:06]} 28. b3 {[%emt 0:03:22]} a5 {[%emt 0:00:01]} 29. a4 {[%emt 0:00:18]} Ba6 {[%emt 0:00:08]} 30. Rc1 {[%emt 0:01:41]} Qd6 {[%emt 0:01:08]} 31. Qg3 {[%emt 0:01:48]} Qxg3+ {[%emt 0:01:54]} 32. Rxg3 {[%emt 0:00:24]} Bb7 {[%emt 0:00:49]} 33. Bd2 {[%emt 0:00:36]} Nd7 {[%emt 0:00:57]} 34. Ng2 {[%emt 0:01:54]} Rec8 {[%emt 0:03:03]} 35. Rgc3 {[%emt 0:01:34]} Nf8 {[%emt 0:01:03]} 36. Be3 {[%emt 0:02:28]} Kf7 {[%emt 0:01:34]} 37. Kh2 {[%emt 0:01:40]} Ne6 {[%emt 0:00:35]} 38. Nf4 {[%emt 0:00:21]} Ng5 {[%emt 0:00:23]} 39. Kg3 {[%emt 0:00:54]} Nf3 {[%emt 0:00:15]} 40. Ne2 {[%emt 0:01:45]} Ke7 {[%emt 0:04:10]} 41. Ng1 {[%emt 0:32:55]} Nxg1 {[%emt 0:32:02]} 42. Rxg1 {[%emt 0:00:27]} Kd7 {[%emt 0:00:00]} 43. Rc5 {[%emt 0:00:00]} Rf8 {[%emt 0:00:00]} 44. Rgc1 {[%emt 0:00:00]} Rf3+ {[%emt 0:00:00]} 45. Kg2 {[%emt 0:00:00]} h5 {[%emt 0:00:00]} 46. Rg1 {[%emt 0:00:00]} Kc7 {[%emt 0:00:00]} 47. gxh5 {[%emt 0:00:00]} gxh5 {[%emt 0:00:00]} 48. Kh2 {[%emt 0:00:00]} Bc8 {[%emt 0:00:00]} 49. Rg3 {[%emt 0:00:00]} Rxg3 {[%emt 0:00:00]} 50. Kxg3 {[%emt 0:00:00]} Bd7 {[%emt 0:00:00]} 51. Kh4 {[%emt 0:00:00]} 1/2-1/2

[Event "Summer Prague Open-A 2022"]
[Site "Prague"]
[Date "2022.08.06"]
[Round "2.21"]
[White "Santagati, Alessandro"]
[Black "Mansoor, Afras"]
[Result "1-0"]
[ECO "D38"]
[WhiteElo "2299"]
[BlackElo "2040"]
[Annotator "RC"]
[PlyCount "203"]
[EventDate "2022.08.05"]
[EventType "swiss"]
[EventCountry "CZE"]
[SourceTitle "playchess.com"]
[Source "ChessBase"]
[SourceQuality "1"]
[TimeControl "40/5400+30:1800+30"]

1. d4 {[%emt 0:00:04]} Nf6 {[%emt 0:00:05]} 2. c4 {[%emt 0:00:09]} e6 {[%emt 0:00:03]} 3. Nf3 {[%emt 0:00:07]} d5 {[%emt 0:00:04]} 4. Nc3 {[%emt 0:00:10]} Bb4 {[%emt 0:00:04]} 5. Qa4+ {[%emt 0:00:24]} Nc6 {[%emt 0:00:05]} 6. e3 {[%emt 0:00:13]} O-O {[%emt 0:00:29]} 7. Bd2 {[%emt 0:00:15]} Re8 {[%emt 0:08:04]} 8. Be2 {[%emt 0:06:16]} Bf8 {[%emt 0:03:09]} 9. O-O {[%emt 0:03:39]} Bd7 {[%emt 0:03:28]} 10. Qd1 {[%emt 0:02:22]} dxc4 {[%emt 0:03:17]} 11. Bxc4 {[%emt 0:00:20]} Na5 {[%emt 0:00:52]} 12. Bd3 {[%emt 0:11:30]} c5 {[%emt 0:01:56]} 13. Ne5 {[%emt 0:04:42]} Nc6 {[%emt 0:02:03]} 14. Qf3 {[%emt 0:07:55]} Nxe5 {[%emt 0:07:26]} 15. dxe5 {[%emt 0:00:10]} Bc6 {[%emt 0:00:11]} 16. e4 {[%emt 0:01:25]} c4 {[%emt 0:11:24]} 17. Bxc4 {[%emt 0:04:49]} Nxe4 {[%emt 0:08:08]} 18. Nxe4 {[%emt 0:00:25]} Bxe4 {[%emt 0:00:03]} 19. Qe2 {[%emt 0:03:23]} Bg6 {[%emt 0:02:31]} 20. Bb5 {[%emt 0:04:42]} Re7 {[%emt 0:00:26]} 21. Bg5 {[%emt 0:00:38]} a6 {[%emt 0:06:46]} 22. Rfd1 {[%emt 0:02:10]} Qa5 {[%emt 0:01:03]} 23. Bxe7 {[%emt 0:00:30]} Bxe7 {[%emt 0:00:05]} 24. Rd7 {[%emt 0:05:53]} Qxb5 {[%emt 0:05:02]} 25. Qxb5 {[%emt 0:00:15]} axb5 {[%emt 0:00:04]} 26. Rxe7 {[%emt 0:00:08]} Be4 {[%emt 0:00:03]} 27. Rc1 {[%emt 0:01:43]} Bc6 {[%emt 0:00:11]} 28. Rc7 {[%emt 0:01:21]} g6 {[%emt 0:00:44]} 29. a3 {[%emt 0:05:58]} Rd8 {[%emt 0:00:06]} 30. h4 {[%emt 0:01:05]} h5 {[%emt 0:08:35]} 31. Rc2 {[%emt 0:10:11]} Rd5 {[%emt 0:06:14]} 32. f4 {[%emt 0:03:05]} Rd4 {[%emt 0:00:51]} 33. g3 {[%emt 0:09:56]} Rd3 {[%emt 0:03:32]} 34. Kf2 {[%emt 0:07:40]} Kf8 {[%emt 0:02:46]} 35. Rc3 {[%emt 0:02:54]} Rd2+ {[%emt 0:00:44]} 36. Ke3 {[%emt 0:00:06]} Rxb2 {[%emt 0:00:09]} 37. Rd3 {[%emt 0:00:54]} Ke8 {[%emt 0:00:36]} 38. Rc8+ {[%emt 0:00:32]} Ke7 {[%emt 0:00:04]} 39. Rc7+ {[%emt 0:00:30]} Ke8 {[%emt 0:00:05]} 40. Kd4 {[%emt 0:01:17]} Rc2 {[%emt 0:06:52]} 41. Rc3 {[%emt 0:30:27]} Rd2+ {[%emt 0:31:04]} 42. Rd3 {[%emt 0:00:00]} Rc2 {[%emt 0:00:00]} 43. Rc8+ {[%emt 0:00:00]} Kd7 {[%emt 0:00:00]} 44. Rf8 {[%emt 0:00:00]} Ke7 {[%emt 0:00:00]} 45. Rb8 {[%emt 0:00:00]} Rc4+ {[%emt 0:00:00]} 46. Ke3 {[%emt 0:00:00]} Ra4 {[%emt 0:00:00]} 47. Rb3 {[%emt 0:00:00]} Rc4 {[%emt 0:00:00]} 48. Kd2 {[%emt 0:00:00]} Ra4 {[%emt 0:00:00]} 49. Kc2 {[%emt 0:00:00]} Re4 {[%emt 0:00:00]} 50. Rc3 {[%emt 0:00:00]} Rd4 {[%emt 0:00:00]} 51. Rb3 {[%emt 0:00:00]} Rc4+ {[%emt 0:00:00]} 52. Kd3 {[%emt 0:00:00]} Be4+ {[%emt 0:00:00]} 53. Kd2 {[%emt 0:00:00]} Bc6 {[%emt 0:00:00]} 54. Rb4 {[%emt 0:00:00]} Rc5 {[%emt 0:00:00]} 55. Rd4 {[%emt 0:00:00]} Bd5 {[%emt 0:00:00]} 56. Ra8 {[%emt 0:00:00]} Bc6 {[%emt 0:00:00]} 57. Rad8 {[%emt 0:00:14]} Bd5 {[%emt 0:00:00]} 58. Rd6 {[%emt 0:00:09]} Rc8 {[%emt 0:00:25]} 59. Rd3 {[%emt 0:01:42]} Ra8 {[%emt 0:02:14]} 60. Rc3 {[%emt 0:01:03]} Bc6 {[%emt 0:00:26]} 61. Rd4 {[%emt 0:00:25]} Ra6 {[%emt 0:01:10]} 62. Kc2 {[%emt 0:00:22]} Ra8 {[%emt 0:00:05]} 63. Kb3 {[%emt 0:00:11]} Bd5+ {[%emt 0:00:22]} 64. Kb2 {[%emt 0:02:06]} Bc6 {[%emt 0:01:05]} 65. Rc5 {[%emt 0:00:10]} Ra6 {[%emt 0:00:32]} 66. Kb3 {[%emt 0:00:30]} Bd5+ {[%emt 0:00:48]} 67. Rdxd5 {[%emt 0:00:39]} exd5 {[%emt 0:00:09]} 68. Rxd5 {[%emt 0:00:12]} Ra5 {[%emt 0:08:40]} 69. Rd6 {[%emt 0:00:43]} Ra6 {[%emt 0:02:14]} 70. Rd3 {[%emt 0:03:39]} Ra4 {[%emt 0:02:12]} 71. Rd5 {[%emt 0:01:06]} Ra5 {[%emt 0:00:02]} 72. Kb2 {[%emt 0:00:13]} Ke8 {[%emt 0:00:46]} 73. Rd3 {[%emt 0:01:11]} Ra4 {[%emt 0:00:45]} 74. Rb3 {[%emt 0:00:24]} Kd7 {[%emt 0:01:45]} 75. Rxb5 {[%emt 0:00:16]} Kc6 {[%emt 0:00:05]} 76. Rb3 {[%emt 0:00:22]} Re4 {[%emt 0:00:09]} 77. Rd3 {[%emt 0:00:17]} b5 {[%emt 0:01:36]} 78. Kc3 {[%emt 0:00:16]} Kc5 {[%emt 0:00:44]} 79. Kd2 {[%emt 0:01:32]} Ra4 {[%emt 0:00:42]} 80. Ke3 {[%emt 0:00:44]} Ra7 {[%emt 0:00:48]} 81. Ke4 {[%emt 0:00:33]} Ra4+ {[%emt 0:01:28]} 82. Kf3 {[%emt 0:00:24]} Kc4 {[%emt 0:01:13]} 83. Rd7 {[%emt 0:00:06]} Rxa3+ {[%emt 0:00:12]} 84. Ke4 {[%emt 0:00:04]} Rxg3 {[%emt 0:01:03]} 85. Rxf7 {[%emt 0:00:20]} Rg1 {[%emt 0:00:03]} 86. Rc7+ {[%emt 0:00:14]} Kb3 {[%emt 0:00:20]} 87. e6 {[%emt 0:00:15]} Re1+ {[%emt 0:00:36]} 88. Kd5 {[%emt 0:00:06]} b4 {[%emt 0:00:15]} 89. e7 {[%emt 0:01:05]} Ka2 {[%emt 0:01:05]} 90. Ra7+ {[%emt 0:00:06]} Kb2 {[%emt 0:01:29]} 91. Kd6 {[%emt 0:00:07]} b3 {[%emt 0:00:27]} 92. Kd7 {[%emt 0:00:12]} Rd1+ {[%emt 0:00:31]} 93. Ke6 {[%emt 0:00:16]} Re1+ {[%emt 0:00:05]} 94. Kf7 {[%emt 0:00:17]} Kc2 {[%emt 0:00:07]} 95. Rc7+ {[%emt 0:00:28]} Kd3 {[%emt 0:00:12]} 96. Rb7 {[%emt 0:00:09]} Kc2 {[%emt 0:00:29]} 97. e8=Q {[%emt 0:00:11]} Rxe8 {[%emt 0:00:02]} 98. Kxe8 {[%emt 0:00:08]} b2 {[%emt 0:00:02]} 99. Kf7 {[%emt 0:00:18]} b1=Q {[%emt 0:00:03]} 100. Rxb1 {[%emt 0:00:09]} Kxb1 {[%emt 0:00:03]} 101. Kxg6 {[%emt 0:00:09]} Kc2 {[%emt 0:00:03]} 102. f5 {[%emt 0:00:15]} 1-0

[Event "Summer Prague Open-A 2022"]
[Site "Prague"]
[Date "2022.08.06"]
[Round "2.22"]
[White "Karas, Marek"]
[Black "Koval, Michal"]
[Result "1-0"]
[ECO "D00"]
[WhiteElo "2286"]
[BlackElo "2029"]
[Annotator "RC"]
[PlyCount "99"]
[EventDate "2022.08.05"]
[EventType "swiss"]
[EventCountry "CZE"]
[SourceTitle "playchess.com"]
[Source "ChessBase"]
[SourceQuality "1"]
[TimeControl "40/5400+30:1800+30"]

1. d4 {[%emt 0:00:02]} d5 {[%emt 0:00:06]} 2. Bf4 {[%emt 0:00:06]} Nf6 {[%emt 0:00:12]} 3. Nc3 {[%emt 0:00:08]} a6 {[%emt 0:03:12]} 4. e3 {[%emt 0:00:38]} Bf5 {[%emt 0:02:05]} 5. f3 {[%emt 0:01:21]} e6 {[%emt 0:02:32]} 6. g4 {[%emt 0:01:27]} Bg6 {[%emt 0:00:05]} 7. h4 {[%emt 0:00:15]} h5 {[%emt 0:04:46]} 8. g5 {[%emt 0:00:33]} Nfd7 {[%emt 0:00:41]} 9. Bd3 {[%emt 0:00:20]} Bxd3 {[%emt 0:00:55]} 10. Qxd3 {[%emt 0:00:08]} g6 {[%emt 0:00:12]} 11. e4 {[%emt 0:03:36]} c6 {[%emt 0:07:54]} 12. O-O-O {[%emt 0:05:34]} Nb6 {[%emt 0:00:55]} 13. Be5 {[%emt 0:06:57]} Rg8 {[%emt 0:00:36]} 14. Bf6 {[%emt 0:11:54]} Qc7 {[%emt 0:02:53]} 15. Nh3 {[%emt 0:08:42]} N8d7 {[%emt 0:03:12]} 16. Kb1 {[%emt 0:06:19]} Nxf6 {[%emt 0:05:45]} 17. gxf6 {[%emt 0:00:07]} O-O-O {[%emt 0:00:16]} 18. Ng5 {[%emt 0:01:47]} Rd7 {[%emt 0:14:06]} 19. Ne2 {[%emt 0:03:33]} Nc4 {[%emt 0:05:21]} 20. e5 {[%emt 0:04:14]} Nxe5 {[%emt 0:16:31]} 21. dxe5 {[%emt 0:00:18]} Qxe5 {[%emt 0:00:08]} 22. Nh7 {[%emt 0:08:21]} Bh6 {[%emt 0:02:15]} 23. f4 {[%emt 0:07:29]} Bxf4 {[%emt 0:02:51]} 24. Rhf1 {[%emt 0:03:17]} Bh6 {[%emt 0:02:59]} 25. Rde1 {[%emt 0:05:32]} Qd6 {[%emt 0:03:09]} 26. Ng1 {[%emt 0:03:56]} e5 {[%emt 0:04:51]} 27. Nh3 {[%emt 0:00:57]} e4 {[%emt 0:00:27]} 28. Qb3 {[%emt 0:00:55]} Bd2 {[%emt 0:01:26]} 29. Re2 {[%emt 0:01:56]} Ba5 {[%emt 0:00:58]} 30. N7g5 {[%emt 0:01:01]} Bd8 {[%emt 0:01:42]} 31. Ref2 {[%emt 0:02:50]} Re8 {[%emt 0:01:16]} 32. Nf4 {[%emt 0:02:35]} e3 {[%emt 0:01:55]} 33. Re2 {[%emt 0:00:16]} Bxf6 {[%emt 0:02:01]} 34. Rxe3 {[%emt 0:01:25]} Rxe3 {[%emt 0:01:54]} 35. Qxe3 {[%emt 0:00:02]} Re7 {[%emt 0:01:09]} 36. Qh3+ {[%emt 0:00:29]} Kc7 {[%emt 0:00:17]} 37. Nfe6+ fxe6 {[%emt 0:03:17]} 38. Rxf6 {[%emt 0:01:51]} Qe5 {[%emt 0:01:04]} 39. Qf1 {[%emt 0:00:58]} Kd7 {[%emt 0:00:48]} 40. a3 {[%emt 0:03:27]} Qd4 {[%emt 0:01:28]} 41. Rf7 {[%emt 0:32:34]} Qg4 {[%emt 0:03:39]} 42. Qf6 {[%emt 0:00:00]} Rxf7 {[%emt 0:01:00]} 43. Nxf7 {[%emt 0:00:00]} Qd1+ {[%emt 0:02:48]} 44. Ka2 {[%emt 0:00:00]} c5 {[%emt 0:00:15]} 45. Qd8+ {[%emt 0:00:00]} Kc6 {[%emt 0:00:06]} 46. Qc8+ {[%emt 0:00:00]} Kb5 {[%emt 0:01:17]} 47. Nd6+ {[%emt 0:00:00]} Ka5 {[%emt 0:00:35]} 48. Qxc5+ {[%emt 0:00:00]} b5 {[%emt 0:00:17]} 49. Nb7+ {[%emt 0:00:00]} Ka4 {[%emt 0:00:05]} 50. b3# 1-0

[Event "Summer Prague Open-A 2022"]
[Site "Prague"]
[Date "2022.08.06"]
[Round "2.23"]
[White "Salem Eid, Ahmed"]
[Black "Kvaloy, Aksel Bu"]
[Result "1/2-1/2"]
[ECO "C45"]
[WhiteElo "2165"]
[BlackElo "2289"]
[Annotator "RC"]
[PlyCount "82"]
[EventDate "2022.08.05"]
[EventType "swiss"]
[EventCountry "CZE"]
[SourceTitle "playchess.com"]
[Source "ChessBase"]
[SourceQuality "1"]
[TimeControl "40/5400+30:1800+30"]

1. e4 {[%emt 0:01:19]} e5 {[%emt 0:00:17]} 2. Nf3 {[%emt 0:00:13]} Nc6 {[%emt 0:00:11]} 3. d4 {[%emt 0:00:07]} exd4 {[%emt 0:00:33]} 4. Nxd4 {[%emt 0:00:06]} Nf6 {[%emt 0:00:35]} 5. Nxc6 {[%emt 0:01:00]} bxc6 {[%emt 0:00:40]} 6. e5 {[%emt 0:00:05]} Qe7 {[%emt 0:00:58]} 7. Qe2 {[%emt 0:00:07]} Nd5 {[%emt 0:00:29]} 8. c4 {[%emt 0:01:09]} Ba6 {[%emt 0:01:18]} 9. b3 {[%emt 0:00:05]} g6 {[%emt 0:01:53]} 10. Ba3 {[%emt 0:01:14]} Nb4 {[%emt 0:02:32]} 11. Bb2 {[%emt 0:01:28]} Bg7 {[%emt 0:01:00]} 12. a3 {[%emt 0:00:10]} Nd5 {[%emt 0:00:42]} 13. Nd2 {[%emt 0:00:31]} O-O {[%emt 0:01:55]} 14. O-O-O {[%emt 0:00:06]} Rfe8 {[%emt 0:04:55]} 15. Qf3 {[%emt 0:02:07]} Nb6 {[%emt 0:07:44]} 16. Ne4 {[%emt 0:00:36]} d5 {[%emt 0:27:36]} 17. Nf6+ {[%emt 0:03:42]} Bxf6 {[%emt 0:00:24]} 18. exf6 {[%emt 0:00:02]} Qe4 {[%emt 0:00:32]} 19. Qxe4 {[%emt 0:06:02]} Rxe4 {[%emt 0:01:33]} 20. Bd3 {[%emt 0:04:07]} Ree8 {[%emt 0:07:22]} 21. c5 {[%emt 0:04:56]} Bxd3 {[%emt 0:01:41]} 22. cxb6 {[%emt 0:01:29]} Be2 {[%emt 0:01:22]} 23. b7 {[%emt 0:01:44]} Rab8 {[%emt 0:00:08]} 24. Rde1 {[%emt 0:03:22]} Rxb7 {[%emt 0:04:55]} 25. b4 {[%emt 0:04:35]} Rbb8 {[%emt 0:03:29]} 26. Kd2 {[%emt 0:00:42]} Bc4 {[%emt 0:03:46]} 27. Rxe8+ {[%emt 0:00:57]} Rxe8 {[%emt 0:00:02]} 28. Re1 {[%emt 0:00:04]} Rxe1 {[%emt 0:00:32]} 29. Kxe1 {[%emt 0:00:01]} Kf8 {[%emt 0:04:41]} 30. Be5 {[%emt 0:00:47]} Ke8 {[%emt 0:00:23]} 31. Bxc7 {[%emt 0:00:05]} Kd7 {[%emt 0:00:12]} 32. Bb8 {[%emt 0:00:05]} a6 {[%emt 0:00:18]} 33. Ba7 {[%emt 0:00:16]} Ke6 {[%emt 0:00:15]} 34. Bd4 {[%emt 0:00:08]} Kf5 {[%emt 0:00:14]} 35. f3 {[%emt 0:01:24]} h5 {[%emt 0:00:35]} 36. h4 {[%emt 0:00:22]} Kf4 {[%emt 0:00:40]} 37. Kf2 {[%emt 0:00:12]} Bb5 {[%emt 0:00:12]} 38. Kg1 {[%emt 0:01:28]} Be2 {[%emt 0:01:08]} 39. Kf2 {[%emt 0:00:20]} Bb5 {[%emt 0:00:34]} 40. Kg1 {[%emt 0:00:11]} Be2 {[%emt 0:00:05]} 41. Kf2 {[%emt 0:30:07]} Bb5 {[%emt 0:30:03]} 1/2-1/2

[Event "Summer Prague Open-A 2022"]
[Site "Prague"]
[Date "2022.08.06"]
[Round "2.24"]
[White "Gonzalez Santamartina, Jorge"]
[Black "Slampa, Jan"]
[Result "1/2-1/2"]
[ECO "B38"]
[WhiteElo "2022"]
[BlackElo "2254"]
[Annotator "RC"]
[PlyCount "69"]
[EventDate "2022.08.05"]
[EventType "swiss"]
[EventCountry "CZE"]
[SourceTitle "playchess.com"]
[Source "ChessBase"]
[SourceQuality "1"]
[TimeControl "40/5400+30:1800+30"]

1. c4 {[%emt 0:00:29]} c5 {[%emt 0:00:20]} 2. Nf3 {[%emt 0:00:24]} Nc6 {[%emt 0:00:21]} 3. d4 {[%emt 0:00:31]} cxd4 {[%emt 0:00:21]} 4. Nxd4 {[%emt 0:00:07]} g6 {[%emt 0:00:12]} 5. e4 {[%emt 0:01:20]} Bg7 {[%emt 0:00:40]} 6. Be3 {[%emt 0:00:15]} d6 {[%emt 0:05:42]} 7. Nc3 {[%emt 0:01:56]} Bd7 {[%emt 0:00:40]} 8. Be2 {[%emt 0:01:22]} Nf6 {[%emt 0:06:12]} 9. O-O {[%emt 0:02:36]} O-O {[%emt 0:00:16]} 10. Qd2 {[%emt 0:08:32]} Rc8 {[%emt 0:13:35]} 11. f3 {[%emt 0:03:16]} b6 {[%emt 0:13:22]} 12. b3 {[%emt 0:04:22]} Nxd4 {[%emt 0:03:23]} 13. Bxd4 {[%emt 0:00:44]} Bc6 {[%emt 0:00:08]} 14. Rfd1 {[%emt 0:04:19]} Rc7 {[%emt 0:16:43]} 15. Rac1 {[%emt 0:03:30]} Qa8 {[%emt 0:03:25]} 16. Nd5 {[%emt 0:07:31]} Bxd5 {[%emt 0:10:55]} 17. cxd5 {[%emt 0:01:16]} Rfc8 {[%emt 0:04:48]} 18. Be3 {[%emt 0:20:25]} Nd7 {[%emt 0:02:43]} 19. Ba6 {[%emt 0:03:41]} Rxc1 {[%emt 0:00:50]} 20. Rxc1 {[%emt 0:00:05]} Rxc1+ {[%emt 0:00:11]} 21. Qxc1 {[%emt 0:00:02]} Nc5 {[%emt 0:00:26]} 22. Bb5 {[%emt 0:02:25]} a5 {[%emt 0:03:19]} 23. Qc4 {[%emt 0:07:15]} Bb2 {[%emt 0:04:18]} 24. Kf2 {[%emt 0:13:25]} Qf8 {[%emt 0:02:14]} 25. b4 {[%emt 0:07:57]} axb4 {[%emt 0:00:02]} 26. Qxb4 {[%emt 0:00:01]} Qg7 {[%emt 0:00:01]} 27. Be2 {[%emt 0:04:19]} Qf6 {[%emt 0:00:29]} 28. Kg1 {[%emt 0:01:26]} Nd7 {[%emt 0:05:55]} 29. Kh1 {[%emt 0:00:48]} Bc3 {[%emt 0:00:26]} 30. Qc4 {[%emt 0:00:39]} Nc5 {[%emt 0:00:02]} 31. Qb5 {[%emt 0:00:29]} Ba5 {[%emt 0:01:49]} 32. Bf1 {[%emt 0:00:29]} h5 {[%emt 0:00:35]} 33. Qc4 {[%emt 0:00:31]} h4 {[%emt 0:01:09]} 34. Qd4 {[%emt 0:00:27]} Qxd4 {[%emt 0:01:22]} 35. Bxd4 {[%emt 0:00:01]} 1/2-1/2

[Event "Summer Prague Open-A 2022"]
[Site "Prague"]
[Date "2022.08.07"]
[Round "3.1"]
[White "Gloser, David"]
[Black "Zanan, Evgeny"]
[Result "1/2-1/2"]
[ECO "B46"]
[WhiteElo "2221"]
[BlackElo "2521"]
[Annotator "TA"]
[PlyCount "88"]
[EventDate "2022.08.05"]
[EventType "swiss"]
[EventCountry "CZE"]
[SourceTitle "playchess.com"]
[Source "ChessBase"]
[SourceQuality "1"]
[TimeControl "40/5400+30:1800+30"]

{[%evp 12,88,14,0,6,0,0,0,0,0,0,-1,10,0,45,0,31,7,11,0,20,7,68,68,83,57,112,126,170,144,130,155,168,181,296,265,283,180,212,208,183,191,231,92,92,93,84,0,0,0,0,0,0,0,0,0,0,0,0,0,0,0,0,0,0,0,0,0,0,0,0,0,0,-8,0,0,75,8,21]} 1. e4 {[%emt 0:00:03]} c5 {[%emt 0:01:35]} 2. Nf3 {[%emt 0:00:07]} e6 {[%emt 0:00:04]} 3. d4 {[%emt 0:00:43]} cxd4 {[%emt 0:00:05]} 4. Nxd4 {[%emt 0:00:04]} Nc6 {[%emt 0:00:04]} 5. Nc3 {[%emt 0:00:48]} a6 {[%emt 0:00:07]} 6. Be3 {[%emt 0:04:48]} Nf6 {[%emt 0:04:26]} 7. Nxc6 {[%emt 0:06:06] 7.a3 is becoming the main line.} bxc6 {[%emt 0:02:21] B46: Sicilian: Taimanov: 5 Nc3 a6.} 8. e5 {[%emt 0:01:14]} Nd5 {[%emt 0:00:04]} 9. Nxd5 {[%emt 0:01:11]} cxd5 {[%emt 0:00:06]} 10. Bd3 {[%emt 0:03:20]} Qc7 {[%emt 0:01:07]} 11. Bd4 {[%emt 0:07:08]} g6 {[%emt 0:17:48] [#]} (11... Bc5 {looks sharper.} 12. Qg4 O-O 13. O-O a5) 12. Qe2 $146 {[%emt 0:05:16]} ({Predecessor:} 12. O-O Bg7 13. Qe2 O-O 14. Rac1 d6 15. f4 Qb8 16. c3 Bb7 17. Rc2 Rc8 18. h4 dxe5 19. fxe5 {1-0 (33) Bonini,R (1859)-Magnabosco,M (1815) Casaleone 2014}) 12... Rb8 {[%emt 0:09:44]} 13. h4 {[%emt 0:04:52]} h5 {[%emt 0:03:10]} 14. Kf1 {[%emt 0:10:41]} a5 {[%emt 0:12:11]} 15. Rh3 {[%emt 0:03:50]} Bg7 {[%emt 0:02:20]} 16. Re1 {[%emt 0:02:33]} Qc6 {[%emt 0:03:02]} (16... O-O $11) 17. c3 $14 {[%emt 0:08:16]} a4 {[%emt 0:03:21]} 18. Kg1 {[%emt 0:00:23]} d6 {[%emt 0:32:22]} (18... Qb7 $14) 19. Rg3 $16 {[%emt 0:03:33]} Rb7 {[%emt 0:03:07]} 20. Qe3 $1 {[%emt 0:06:16]} dxe5 {[%emt 0:02:30]} 21. Bxe5 {[%emt 0:00:06]} Bxe5 {[%emt 0:00:26]} 22. Qxe5 {[%emt 0:00:05]} Rf8 {[%emt 0:00:25]} (22... Rg8 $142 23. c4 Qc7) 23. c4 $1 $18 {[%emt 0:01:46]} Qc7 {[%emt 0:00:54]} 24. Qc3 {[%emt 0:05:14]} ({And not} 24. cxd5 Qxe5 25. Rxe5 Rxb2 $11) 24... dxc4 {[%emt 0:00:23]} 25. Bxc4 {[%emt 0:00:44] Rd1 is the strong threat.} Ke7 {[%emt 0:00:37]} 26. Rd3 {[%emt 0:04:52] Threatens to win with Qa3+.} Qc5 {[%emt 0:00:16] [#]} 27. b3 {[%emt 0:03:53]} (27. Rf3 $1 $18 {has better winning chances. Black must now prevent Qf6+.} Bd7 28. Qf6+ (28. b4 Rxb4 29. Rc1 Rb6 $14) 28... Ke8 {[#]} 29. Rd1 $1) 27... axb3 $16 {[%emt 0:00:48]} 28. axb3 {[%emt 0:00:06] Strongly threatening Re2.} Rd7 {[%emt 0:00:13]} 29. Rf3 {[%emt 0:03:40] White is more active.} (29. Rxd7+ $16 Bxd7 30. Re3) 29... Rd4 $11 {[%emt 0:00:44]} 30. Qe3 {[%emt 0:01:58] aiming for Rc1.} Rfd8 {[%emt 0:00:34][%cal Bf8d8,Bd8d4,Bd4b4][%mdl 32]} 31. Rf4 {[%emt 0:02:37]} Qd6 {[%emt 0:00:19]} 32. Rxd4 {[%emt 0:02:34]} Qxd4 {[%emt 0:00:21]} 33. Qxd4 {[%emt 0:01:05]} Rxd4 {[%emt 0:00:04][%mdl 4096] Endgame KRB-KRB} 34. g3 $1 {[%emt 0:00:45]} Bb7 {[%emt 0:00:05]} 35. Kf1 {[%emt 0:01:11]} Bf3 {[%emt 0:00:35]} 36. Be2 {[%emt 0:02:13]} Bd5 {[%emt 0:00:06]} 37. Rb1 $1 {[%emt 0:00:28]} Rb4 {[%emt 0:00:13]} 38. Bd1 $1 {[%emt 0:00:32]} f5 {[%emt 0:01:23][%cal Bf7f5,Bf5f4,Bf4g3][%mdl 32]} 39. Ke1 {[%emt 0:01:47]} f4 {[%emt 0:00:34]} 40. Kd2 {[%emt 0:00:37]} e5 {[%emt 0:00:46]} 41. Kc3 {[%emt 0:03:35]} Rd4 {[%emt 0:04:29]} 42. Ra1 {[%emt 0:04:25]} Kf6 {[%emt 0:05:19]} 43. Ra6+ {[%emt 0:04:08]} Kf5 {[%emt 0:00:48]} (43... Kf7 $11 44. Bc2 fxg3 45. Bxg6+ Kg7 46. fxg3 Rg4 47. Bxh5 Rxg3+ 48. Kb4 Bxb3) 44. Be2 {[%emt 0:00:23]} ({White should play} 44. Bc2+ $16 Be4 45. Ra4 (45. Bxe4+ Rxe4 46. b4 fxg3 $11)) 44... fxg3 {[%emt 0:03:27] Black escapes into a draw.  Weighted Error Value: White=0.13 (very precise) /Black=0.18 (very precise)} 1/2-1/2